bitfinex/quotes_ETHUSD_20260207
["timestamp","ask_amount","ask_price","bid_price","bid_amount"]
[1770434625269,1.09971252,2073.5,2072.6,5.90089552]
[1770434625637,1.09971252,2073.5,2072.7,1.07627064]
[1770434626517,2.30540533,2073.5,2072.7,1.07627064]
[1770434626721,1.09971252,2073.5,2072.7,1.07627064]
[1770434627019,2.30540539,2073.5,2072.8,0.59008955]
[1770434627548,2.30540539,2073.5,2072.9,1.20603984]
[1770434628122,0.002,2073.3,2072.9,1.20603984]
[1770434629217,0.002,2073.3,2072.8,1.79714016]
[1770434629218,1.09971252,2073.3,2072.8,1.79714016]
[1770434629618,1.09971252,2073.3,2072.8,1.20705061]
[1770434630050,0.002,2073.3,2072.8,1.20705061]
[1770434631754,0.002,2073.3,2072.8,0.001]
[1770434632050,1.09971252,2073.3,2072.8,0.001]
[1770434635160,1.09771252,2073.1,2072.4,1.20630935]
[1770434635381,0.002,2073.3,2072.6,1.07627064]
[1770434635530,1.09771252,2073.2,2072.5,1.20624654]
[1770434635725,1.14596357,2073.2,2072.5,1.20624654]
[1770434635927,1.14596357,2073.2,2072.6,0.60315542]
[1770434636139,1.09771252,2073.1,2072.3,4.82554303]
[1770434636336,1.25414768,2073.2,2072.3,4.82554303]
[1770434636337,0.04825105,2073.2,2072.4,9.97123409]
[1770434637527,0.04825105,2073.2,2072.4,1.07627064]
[1770434638450,0.04825105,2073.2,2072.5,1.20627261]
[1770434639428,1.14596357,2073.2,2072.5,1.20627261]
[1770434639833,1.14596357,2073.2,2072.6,0.71076337]
[1770434640050,1.14596357,2073.2,2072.6,0.71176337]
[1770434640278,1.09771252,2073.1,2072.6,0.001]
[1770434640436,1.09771252,2073.0,2072.6,0.001]
[1770434641339,0.002,2073.1,2072.6,1.07727064]
[1770434641541,0.002,2073.1,2072.6,0.001]
[1770434642752,0.002,2073.1,2072.7,9.97420211]
[1770434644058,0.002,2073.3,2072.8,1.07627064]
[1770434644459,0.002,2073.3,2072.9,1.20603984]
[1770434644850,0.002,2073.3,2072.8,4.82417378]
[1770434644851,1.09971252,2073.3,2072.8,1.20605408]
[1770434645058,1.09971252,2073.3,2072.7,1.20610885]
[1770434645253,1.09971252,2073.3,2072.8,1.20608041]
[1770434645465,1.14596357,2073.2,2072.6,1.20718393]
[1770434645677,1.14596357,2073.2,2072.8,1.20609465]
[1770434645849,1.09771252,2073.2,2072.8,1.20609465]
[1770434646045,0.002,2073.3,2072.8,1.20609465]
[1770434646455,0.002,2073.3,2072.7,4.82460108]
[1770434647137,1.08549197,2073.3,2072.7,1.20615622]
[1770434648805,0.002,2073.6,2072.8,1.16431991]
[1770434648946,4.32518003,2074.0,2072.8,1.16431991]
[1770434648947,0.19647757,2074.7,2074.0,1.16431991]
[1770434649282,2.31766527,2076.6,2075.2,1.16431991]
[1770434649441,2.31766527,2076.6,2075.6,8.89793147]
[1770434649773,0.01727122,2076.5,2075.6,8.89793147]
[1770434649943,1.13102067,2076.5,2075.3,11.06847652]
[1770434650139,0.01727122,2076.5,2075.6,8.89793147]
[1770434650464,1.20391582,2076.6,2075.6,8.89793147]
[1770434650777,0.73059414,2076.5,2075.6,8.89793147]
[1770434651078,1.11374945,2076.3,2075.2,1.45609684]
[1770434651381,1.11374945,2076.3,2075.3,1.20461399]
[1770434651382,0.01727122,2076.2,2075.3,1.20461399]
[1770434651567,0.01727122,2076.2,2075.3,1.20463941]
[1770434651568,0.62310654,2076.2,2075.3,1.20463941]
[1770434651779,0.01727122,2076.1,2075.2,0.25139503]
[1770434653089,1.11374945,2075.9,2074.6,1.20502013]
[1770434653260,1.11374945,2075.9,2074.5,10.33471236]
[1770434653458,0.01727122,2075.8,2074.5,11.53978155]
[1770434653764,1.13102067,2075.8,2074.7,1.20499021]
[1770434654089,1.13102067,2075.8,2074.5,16.30909484]
[1770434654090,1.13102067,2075.8,2074.6,2.36933413]
[1770434654252,1.13102067,2075.8,2074.7,1.20498821]
[1770434654449,1.13102067,2075.8,2074.6,1.16431991]
[1770434654653,0.01727122,2075.7,2074.6,2.36936539]
[1770434655055,1.20447099,2075.6,2074.6,2.36936541]
[1770434655378,0.60396262,2075.5,2074.6,2.3693491]
[1770434656450,0.01727122,2075.4,2074.5,10.3754632]
[1770434656649,0.01727122,2075.4,2074.5,9.17039245]
[1770434656955,1.13102067,2075.4,2074.5,9.17039245]
[1770434657161,1.11374945,2075.2,2074.5,9.17039245]
[1770434657685,0.01727122,2075.1,2074.5,9.17039245]
[1770434658171,0.01727122,2075.1,2074.5,1e-08]
[1770434658969,1.13102067,2075.1,2074.5,1e-08]
[1770434659179,1.20481927,2075.0,2074.5,1e-08]
[1770434659375,0.60413676,2074.9,2074.5,1e-08]
[1770434659784,0.01727122,2074.8,2073.9,1.16431991]
[1770434659991,0.01727122,2074.8,2073.7,1.20554771]
[1770434660166,0.01727122,2074.7,2073.7,1.20554771]
[1770434660348,0.01727122,2074.7,2073.8,1.32758921]
[1770434660548,0.01727122,2074.6,2073.9,1.16431991]
[1770434660786,0.01727122,2074.8,2073.9,1.16431991]
[1770434660953,1.20452902,2075.5,2074.0,1.26671991]
[1770434661155,4.81788669,2075.6,2074.2,1.16431991]
[1770434661384,0.71361071,2075.5,2074.2,1.16431991]
[1770434663483,1.20458706,2075.4,2074.4,1.16431991]
[1770434664363,1.9181521,2075.5,2074.4,1.16431991]
[1770434665167,1.11374945,2075.4,2074.4,0.001]
[1770434665361,1.20664511,2075.3,2074.4,0.001]
[1770434665562,1.20664511,2075.3,2074.4,1.16531991]
[1770434666297,0.002,2075.3,2074.4,1.16531991]
[1770434667555,0.002,2075.3,2074.6,1.16431991]
[1770434667758,0.66524489,2075.3,2074.6,1.16431991]
[1770434668188,0.66524489,2075.3,2074.4,2.37044525]
[1770434668582,0.66524489,2075.3,2074.4,0.001]
[1770434668770,0.66524489,2075.3,2074.4,1.20616495]
[1770434669770,1.20470316,2075.2,2074.4,1.16531991]
[1770434669973,0.65591335,2075.1,2074.4,1.16531991]
[1770434671375,1.20669082,2075.3,2074.4,1.16531991]
[1770434671886,0.002,2075.3,2074.5,2.36942957]
[1770434672393,0.002,2075.3,2074.6,1.16431991]
[1770434673590,0.002,2075.5,2074.7,1.16431991]
[1770434674191,0.002,2075.5,2074.9,1.16431991]
[1770434674380,0.002,2075.5,2074.7,1.20497862]
[1770434674775,0.002,2075.5,2074.7,1.2049869]
[1770434675477,0.002,2075.5,2074.8,1.16431991]
[1770434676196,0.002,2075.5,2075.0,1.16620048]
[1770434677098,0.002,2075.5,2074.9,1.20487734]
[1770434677268,0.002,2075.5,2075.0,0.60243867]
[1770434677881,0.002,2075.3,2075.0,0.60243867]
[1770434678077,0.002,2075.5,2075.0,1.80723243]
[1770434678308,0.002,2075.5,2075.1,1.16620048]
[1770434678902,0.32638709,2076.1,2075.1,1.16620048]
[1770434679087,1.53057319,2076.1,2075.3,1.16620048]
[1770434679405,0.32638709,2076.1,2075.3,1.16620048]
[1770434680190,0.32638709,2076.1,2075.4,1.20458706]
[1770434680396,0.32638709,2076.1,2075.5,0.71892549]
[1770434680601,0.32638709,2076.1,2075.3,1.20461927]
[1770434680602,1.53058139,2076.1,2075.3,1.20461927]
[1770434682195,1.53057543,2076.1,2075.4,1.16620048]
[1770434682567,1.53057543,2076.1,2075.3,1.20461927]
[1770434683385,1.53057543,2076.1,2075.3,1.16620048]
[1770434684385,1.53057543,2076.1,2075.4,1.20458706]
[1770434684567,2.16529399,2076.1,2075.4,0.748652]
[1770434685200,2.16529399,2076.1,2075.3,1.20460386]
[1770434687671,2.16529399,2076.1,2075.3,2.37080434]
[1770434687973,2.16529959,2076.1,2075.4,1.16620048]
[1770434689197,2.16529959,2076.1,2075.4,2.37073016]
[1770434689901,0.002,2075.9,2075.4,2.37073016]
[1770434690202,0.002,2075.9,2075.5,0.7189169]
[1770434690498,0.002,2075.9,2075.2,0.001]
[1770434691486,1.20629693,2075.9,2075.2,0.001]
[1770434692824,2.34908602,2075.9,2075.2,0.001]
[1770434694295,1.20629693,2075.9,2075.2,0.001]
[1770434695981,0.002,2075.9,2075.2,0.001]
[1770434696176,0.63718137,2075.9,2075.2,0.001]
[1770434696977,0.32838709,2076.1,2075.3,1.16620048]
[1770434697179,0.002,2076.1,2075.3,1.16620048]
[1770434697580,0.002,2076.4,2075.5,1.16620048]
[1770434698199,0.002,2076.4,2075.7,1.16620048]
[1770434700323,0.002,2076.4,2075.9,1.16620048]
[1770434702283,0.002,2076.4,2076.0,1.20423892]
[1770434702610,0.002,2076.4,2076.1,0.71873951]
[1770434702911,0.002,2076.4,2076.2,1.16620048]
[1770434703110,0.002,2077.0,2076.2,1.16620048]
[1770434703690,0.32140271,2077.3,2076.2,1.26860048]
[1770434704014,0.32340271,2077.3,2076.2,1.26860048]
[1770434704213,0.32340271,2077.3,2076.4,1.16620048]
[1770434704414,0.32340271,2077.3,2076.5,2.37014943]
[1770434704608,0.32340271,2077.3,2076.6,1.16620048]
[1770434704915,0.32340271,2077.3,2076.5,1.20394895]
[1770434704916,1.52690961,2077.3,2076.5,1.20394895]
[1770434705491,0.32340271,2077.3,2076.6,1.16620048]
[1770434706321,0.32340271,2077.3,2076.7,1.203833]
[1770434706522,0.32340271,2077.3,2076.8,0.71853655]
[1770434707018,0.32340271,2077.3,2076.8,1.88446766]
[1770434707518,0.32340271,2077.3,2076.8,0.71853655]
[1770434708396,0.32340271,2077.3,2076.9,1.20371707]
[1770434708611,0.002,2077.3,2076.9,2.32706281]
[1770434708789,0.002,2077.3,2077.0,0.78605281]
[1770434710009,1.20316591,2077.9,2077.1,1.12334574]
[1770434710400,1.2029641,2078.2,2077.2,1.20354323]
[1770434710599,1.13839724,2078.1,2077.1,1.20355715]
[1770434710800,1.13839724,2078.1,2077.1,1.88399923]
[1770434711722,1.13839724,2078.1,2077.1,3.00734497]
[1770434712107,1.20295048,2078.3,2077.2,1.12334574]
[1770434712307,2.34134772,2078.3,2077.2,1.12334574]
[1770434712507,0.71529726,2078.2,2077.3,0.3007345]
[1770434712711,1.20302199,2078.1,2077.4,1.20342736]
[1770434713116,1.20302199,2078.1,2077.3,1.50418944]
[1770434713604,1.13839724,2078.8,2077.4,1.12334574]
[1770434713822,2.66066692,2078.9,2077.6,1.12334574]
[1770434714008,1.40446393,2078.8,2077.6,1.11562989]
[1770434714330,1.40446393,2078.8,2077.3,2.62753518]
[1770434714911,1.13839724,2078.6,2077.3,2.62753518]
[1770434715302,1.13839724,2078.6,2077.3,1.42408024]
[1770434715509,1.13839724,2078.6,2077.3,2.3268308]
[1770434716022,0.002,2077.9,2077.3,2.3268308]
[1770434716325,0.002,2077.9,2077.1,0.68041729]
[1770434716502,0.002,2077.9,2077.1,1.20359598]
[1770434716708,0.002,2077.9,2077.0,1.2046037]
[1770434716904,0.002,2077.9,2077.0,1.20465912]
[1770434717629,0.002,2077.9,2077.1,1.12334574]
[1770434719531,0.002,2077.9,2077.2,1.20354323]
[1770434720130,0.002,2077.9,2077.1,1.2035805]
[1770434720302,1.13839724,2077.8,2077.1,1.20358831]
[1770434720502,1.13839724,2077.8,2077.0,1.20461853]
[1770434720704,1.13839724,2077.8,2077.1,1.20359982]
[1770434720904,0.002,2077.9,2077.1,1.20359982]
[1770434721126,0.002,2077.9,2077.1,1.80550646]
[1770434722306,0.002,2077.9,2077.1,0.60190664]
[1770434722530,0.002,2077.9,2077.0,2.32800482]
[1770434722741,0.002,2077.9,2077.1,1.2035962]
[1770434723039,0.002,2077.9,2075.9,2.43565025]
[1770434723250,0.002,2077.9,2075.9,1.20425406]
[1770434723251,1.13839724,2076.9,2075.9,1.20425406]
[1770434723461,1.13839724,2077.6,2076.0,1.12334574]
[1770434723739,1.13839724,2077.8,2076.0,1.12334574]
[1770434724038,1.41820188,2077.7,2076.2,1.12334574]
[1770434724338,1.41820188,2077.7,2076.3,1.20406492]
[1770434724339,1.13839724,2077.5,2076.3,1.20406492]
[1770434724535,1.13839724,2077.5,2076.4,0.71438929]
[1770434726008,1.37196754,2077.4,2076.2,1.2040961]
[1770434726215,1.13839724,2077.2,2076.0,1.20423892]
[1770434726935,1.20348529,2077.3,2076.1,1.12334574]
[1770434727137,1.20348529,2077.3,2076.0,1.20423892]
[1770434727138,1.13839724,2077.2,2076.0,1.20423892]
[1770434727342,1.37196754,2077.1,2076.1,0.60212577]
[1770434727552,1.20348529,2077.3,2075.9,2.32761704]
[1770434727712,1.20348529,2077.3,2076.0,1.12334574]
[1770434728212,1.20348529,2077.3,2076.1,1.20418091]
[1770434729137,1.41820188,2077.2,2075.6,1.20443767]
[1770434729332,1.13839724,2077.0,2075.8,4.81726645]
[1770434729530,1.13839724,2077.0,2076.2,0.001]
[1770434730118,1.203833,2076.7,2076.2,0.001]
[1770434734653,1.20336943,2077.5,2076.3,1.12334574]
[1770434734838,1.20336943,2077.5,2076.5,1.16958008]
[1770434735049,1.20319568,2077.8,2076.6,1.20389097]
[1770434735355,1.85601293,2077.7,2076.7,0.71428006]
[1770434737168,1.20331151,2077.6,2076.7,1.91807912]
[1770434740321,6.15257049,2077.7,2076.7,1.91807912]
[1770434740522,4.81291612,2077.8,2076.8,1.1900869]
[1770434740830,1.23262234,2078.0,2076.8,1.1900869]
[1770434741032,0.2335703,2077.9,2076.8,1.1900869]
[1770434741247,1.73773754,2077.9,2076.9,0.3108166]
[1770434741935,1.27885668,2077.8,2076.9,0.3108166]
[1770434742453,1.27885668,2077.8,2077.0,1.20365912]
[1770434742454,0.002,2077.4,2077.0,1.20365912]
[1770434742626,0.002,2077.4,2076.9,2.70457997]
[1770434743659,0.002,2077.4,2077.0,1.1900869]
[1770434743832,0.002,2077.4,2077.2,1.1900869]
[1770434744554,4.81162535,2078.3,2077.3,2.39357219]
[1770434745066,1.20290622,2078.3,2077.4,1.1900869]
[1770434745865,4.81102576,2078.6,2077.4,1.1900869]
[1770434746231,1.20261689,2078.8,2077.4,1.1900869]
[1770434746467,0.31966571,2078.9,2077.8,1.1900869]
[1770434746639,0.31966571,2078.9,2078.0,1.1900869]
[1770434747340,1.52222732,2078.9,2078.0,1.1900869]
[1770434747548,0.31966571,2078.9,2078.0,1.1900869]
[1770434748543,0.31966571,2078.9,2078.2,1.1900869]
[1770434749056,4.80875292,2079.6,2078.2,1.1900869]
[1770434749057,2.43471879,2079.8,2078.3,1.1900869]
[1770434749265,4.8084455,2079.7,2078.3,1.1900869]
[1770434749465,2.43471879,2079.8,2078.3,1.1900869]
[1770434749466,1.23262234,2080.2,2078.3,1.1900869]
[1770434749632,1.23262234,2080.0,2078.3,1.1900869]
[1770434750831,1.20198086,2079.9,2078.4,1.20284834]
[1770434751036,1.20198086,2079.9,2078.5,1.1900869]
[1770434751939,1.23262234,2079.8,2078.4,1.20284834]
[1770434752135,1.23262234,2079.4,2078.2,2.39302476]
[1770434752337,1.23262234,2079.1,2077.9,1.43404438]
[1770434752538,0.04623434,2079.3,2077.7,1.20324399]
[1770434752539,1.46619264,2079.0,2077.7,1.20324399]
[1770434752735,1.46619264,2079.0,2077.6,1.1900869]
[1770434752736,1.46619264,2079.0,2077.8,1.20318706]
[1770434752940,2.43518138,2078.9,2077.7,1.20325359]
[1770434753155,1.20255904,2078.9,2077.8,1.1900869]
[1770434753349,1.20255904,2078.9,2077.7,1.20325359]
[1770434753561,1.20255904,2078.9,2077.8,0.60164056]
[1770434755373,4.81023618,2079.0,2077.9,1.20313778]
[1770434755572,0.001,2078.7,2077.9,1.20313778]
[1770434756161,0.001,2078.7,2077.8,0.60274056]
[1770434756369,0.001,2078.7,2077.8,0.0011]
[1770434757069,0.001,2078.7,2077.8,1.20428922]
[1770434757448,0.001,2078.7,2077.8,0.0011]
[1770434758064,0.001,2078.7,2077.8,1.1911869]
[1770434759377,0.001,2078.7,2077.9,1.20313778]
[1770434759760,0.001,2078.7,2078.0,0.7206979]
[1770434760551,0.001,2078.7,2077.8,2.39434262]
[1770434760858,0.001,2078.7,2077.9,1.1900869]
[1770434761372,0.001,2078.7,2078.0,1.20307988]
[1770434762049,4.80977345,2079.4,2078.0,1.20307988]
[1770434762050,1.23262234,2079.9,2078.2,1.1900869]
[1770434762250,1.20203865,2079.8,2078.4,1.1900869]
[1770434762475,1.23262234,2079.7,2078.4,1.1900869]
[1770434762853,1.20203865,2079.8,2078.4,1.1900869]
[1770434763353,4.80815463,2079.9,2078.5,1.20279047]
[1770434763677,4.80815463,2079.9,2078.6,1.1900869]
[1770434764090,4.80724835,2080.2,2078.6,1.1900869]
[1770434764266,4.80724835,2080.2,2078.8,1.1900869]
[1770434765467,4.80724835,2080.2,2078.9,2.39264594]
[1770434765670,4.80724835,2080.2,2079.0,1.20458014]
[1770434766059,6.03173336,2080.2,2079.0,1.20458014]
[1770434766257,6.03173336,2080.2,2078.7,5.05451202]
[1770434766258,1.22448501,2079.9,2078.7,0.24391117]
[1770434766486,1.22448501,2079.7,2078.4,1.20458014]
[1770434766664,1.22448501,2079.6,2078.4,1.20284383]
[1770434766869,0.04623434,2080.1,2078.1,1.20458014]
[1770434766870,0.2335703,2080.0,2078.8,2.40717164]
[1770434767064,6.03173336,2080.2,2078.8,2.40717164]
[1770434767456,1.20192307,2080.0,2078.9,2.40712104]
[1770434767659,1.20292307,2080.0,2079.0,0.72175323]
[1770434768476,1.18257485,2079.9,2078.3,5.98073835]
[1770434768682,1.41614515,2079.8,2078.7,1.20267084]
[1770434768993,1.41614515,2079.8,2078.6,1.20268426]
[1770434769205,1.41614515,2079.8,2078.7,1.20267182]
[1770434769801,1.41614515,2079.8,2078.5,4.81103957]
[1770434769802,1.20209645,2079.7,2078.5,4.81103957]
[1770434769968,1.20209645,2079.7,2078.6,0.72310887]
[1770434770163,0.2335703,2079.6,2078.4,2.42006052]
[1770434770773,0.2335703,2079.6,2078.3,1.20288192]
[1770434770774,1.41614515,2079.6,2078.3,1.20288192]
[1770434771090,1.41614515,2079.6,2078.2,4.81184239]
[1770434771292,1.41614515,2079.6,2078.3,1.20290217]
[1770434771589,1.41614515,2079.6,2078.4,1.20284394]
[1770434771792,1.20226988,2079.4,2078.4,1.80429077]
[1770434772578,1.20226988,2079.4,2078.4,2.9734698]
[1770434774364,1.20226988,2079.4,2078.4,0.60144683]
[1770434774688,1.20226988,2079.4,2078.4,1.20282766]
[1770434775895,1.20226988,2079.4,2078.5,1.16917903]
[1770434776692,1.20226988,2079.4,2078.6,1.2027326]
[1770434776875,1.20226988,2079.4,2078.5,2.37192328]
[1770434778695,1.20226988,2079.4,2078.6,1.16917903]
[1770434778905,1.18257485,2079.8,2078.7,1.16917903]
[1770434780281,1.18257485,2079.8,2078.7,0.24200303]
[1770434780684,2.3846713,2079.7,2078.9,0.0011]
[1770434783003,4.80806337,2079.9,2078.9,1.17027903]
[1770434783581,1.20198086,2079.9,2078.9,1.21838139]
[1770434784977,0.001,2080.0,2079.0,2.37168023]
[1770434785178,0.001,2080.0,2079.1,1.89226777]
[1770434787014,0.001,2080.0,2079.1,3.09465499]
[1770434787414,0.001,2080.0,2079.1,3.09470854]
[1770434788187,0.001,2080.0,2079.2,1.16917903]
[1770434789295,0.001,2080.0,2079.1,1.92552904]
[1770434789489,0.001,2080.0,2079.1,1.89226777]
[1770434789691,0.001,2080.0,2079.2,0.675028]
[1770434790280,1.18357485,2080.0,2078.9,0.0011]
[1770434790886,1.18257485,2079.8,2078.9,0.0011]
[1770434791194,2.3846713,2079.7,2078.9,0.0011]
[1770434791993,1.18257485,2079.6,2078.9,0.0011]
[1770434792201,1.41614515,2079.5,2078.9,0.0011]
[1770434792784,1.18257485,2079.5,2078.9,0.0011]
[1770434793620,1.20226988,2079.4,2078.9,0.0011]
[1770434795137,1.20226988,2079.4,2078.3,1.20286862]
[1770434795138,2.38484473,2079.4,2078.3,1.20286862]
[1770434795337,2.38484473,2079.4,2078.4,1.20284681]
[1770434795537,2.38484473,2079.4,2078.3,2.37205214]
[1770434796036,1.23251889,2079.3,2078.3,1.16917903]
[1770434797230,1.20226988,2079.4,2078.3,1.16917903]
[1770434797539,4.80907954,2079.5,2078.3,2.37204738]
[1770434797724,6.04159843,2079.5,2078.3,2.37204738]
[1770434798032,6.04159843,2079.5,2078.4,1.2415711]
[1770434798209,4.80907954,2079.5,2078.4,1.2415711]
[1770434799715,1.20221207,2079.6,2078.6,1.2415711]
[1770434800033,1.20221207,2079.6,2078.7,1.48600726]
[1770434801498,2.43473096,2079.6,2078.7,0.24443616]
[1770434801707,2.43473096,2079.6,2078.7,1.44707529]
[1770434801911,2.43473096,2079.6,2078.7,0.24443616]
[1770434802139,2.43473096,2079.6,2078.7,1.44710982]
[1770434802342,2.43473096,2079.6,2078.8,0.26886809]
[1770434802948,1.20221207,2079.6,2078.8,1.51043919]
[1770434803444,0.2345703,2079.8,2078.8,1.51043919]
[1770434803609,0.003,2081.4,2078.8,1.51043919]
[1770434803610,0.003,2081.4,2079.2,1.20238553]
[1770434803814,6.03737638,2081.3,2080.4,0.2513]
[1770434804039,1.23251889,2081.2,2080.0,1.2415711]
[1770434804244,4.80485749,2081.3,2080.0,1.2415711]
[1770434804538,0.04623434,2081.2,2080.0,1.2415711]
[1770434805332,6.03737638,2081.3,2080.0,1.2415711]
[1770434805724,0.04623434,2081.1,2080.0,2.44349092]
[1770434806535,1.23251889,2081.2,2080.0,2.44349092]
[1770434806848,1.20117234,2081.3,2080.1,1.2415711]
[1770434807042,1.20117234,2081.3,2080.2,1.48592019]
[1770434807723,1.20117234,2081.3,2080.3,1.20174974]
[1770434808130,0.003,2081.4,2080.4,1.2415711]
[1770434808449,1.20411638,2081.4,2080.4,1.2415711]
[1770434808620,1.20412167,2081.4,2080.4,1.2415711]
[1770434808943,1.20412167,2081.4,2080.5,1.48590318]
[1770434809143,0.003,2081.4,2080.5,1.48590318]
[1770434809730,0.003,2081.4,2080.7,1.2415711]
[1770434811560,0.003,2081.4,2080.5,1.4459366]
[1770434811762,2.43374894,2081.2,2080.0,1.20189385]
[1770434812059,2.43374894,2081.2,2079.8,2.44356517]
[1770434812260,1.20123005,2081.2,2079.5,1.2415711]
[1770434812459,1.27875323,2081.0,2079.6,4.8085807]
[1770434812661,0.04623434,2080.7,2079.7,0.60501518]
[1770434812859,0.04623434,2080.7,2078.9,5.11047968]
[1770434812860,1.23251889,2080.8,2079.3,1.2415711]
[1770434813156,0.04623434,2080.7,2079.6,1.20212254]
[1770434813366,1.23251889,2081.1,2079.9,1.20193861]
[1770434813848,0.27980464,2080.9,2079.6,2.44368619]
[1770434814047,1.2013455,2081.0,2079.7,1.2415711]
[1770434814360,1.20117234,2081.3,2079.7,1.2415711]
[1770434814738,1.20117234,2081.3,2079.9,1.2415711]
[1770434814942,0.003,2081.4,2079.9,1.2415711]
[1770434815150,0.003,2081.4,2080.1,1.28780544]
[1770434815458,0.003,2081.4,2080.2,1.21370041]
[1770434815758,0.003,2081.4,2080.4,1.20169198]
[1770434815963,0.003,2081.4,2080.5,1.2415711]
[1770434816759,0.003,2081.4,2080.4,1.20169198]
[1770434817740,0.003,2081.4,2080.3,4.80676792]
[1770434817938,0.003,2081.4,2080.4,1.96379291]
[1770434818151,0.003,2081.4,2080.5,1.2415711]
[1770434818558,1.20088385,2081.9,2080.5,1.2415711]
[1770434818559,4.80340393,2081.9,2080.5,1.2415711]
[1770434818753,0.001,2081.2,2080.6,0.04806305]
[1770434819069,0.001,2081.2,2080.6,1.28963415]
[1770434819266,0.001,2081.2,2080.5,0.04806305]
[1770434819470,0.001,2081.2,2080.5,0.60576833]
[1770434819848,0.001,2081.2,2080.6,1.20157646]
[1770434820049,0.001,2081.2,2080.4,1.97194348]
[1770434820252,0.001,2081.2,2080.5,1.20163362]
[1770434820650,0.001,2081.2,2080.6,1.28962741]
[1770434820854,0.001,2081.2,2080.4,1.20163671]
[1770434821273,0.001,2081.2,2079.9,0.0011]
[1770434821274,0.001,2081.2,2080.1,4.85537746]
[1770434821481,0.001,2081.2,2080.5,1.20159916]
[1770434821649,0.001,2081.2,2080.5,3.04399237]
[1770434821846,0.001,2081.2,2080.6,1.2415711]
[1770434822068,1.52116675,2082.0,2080.7,1.2415711]
[1770434822442,1.27875323,2081.9,2080.8,0.04799643]
[1770434822663,1.27875323,2081.9,2080.5,1.8024536]
[1770434822974,1.23251889,2081.7,2080.6,0.66091816]
[1770434823473,0.279992,2081.8,2080.6,0.66091816]
[1770434823973,1.20094153,2081.7,2080.6,1.86244619]
[1770434825184,1.20094153,2081.7,2080.6,1.91050924]
[1770434825359,1.20094153,2081.7,2080.6,3.15208034]
[1770434825564,1.20094153,2081.7,2080.7,2.09750734]
[1770434825891,1.20082616,2081.9,2080.8,1.32975439]
[1770434826195,1.20082616,2081.9,2080.9,2.48309919]
[1770434826398,0.3203669,2082.0,2081.0,1.28169596]
[1770434826561,1.20067924,2082.2,2081.0,1.28169596]
[1770434826767,1.20067924,2082.2,2081.2,1.28169596]
[1770434827454,1.20056945,2082.4,2081.2,1.28169596]
[1770434828277,4.80215136,2082.6,2081.3,1.20117234]
[1770434828472,4.84745499,2082.9,2081.4,1.24403902]
[1770434828473,1.20024965,2082.9,2081.4,1.24403902]
[1770434828676,1.20024965,2082.9,2081.6,1.24403902]
[1770434829280,1.28372442,2082.8,2081.5,0.24914457]
[1770434829455,1.28372442,2082.8,2081.3,1.20117234]
[1770434829654,1.23749008,2082.5,2081.2,1.24924475]
[1770434829852,0.04623434,2082.8,2081.3,1.24403902]
[1770434830258,1.20036491,2082.7,2081.4,1.20111463]
[1770434830672,1.20036491,2082.7,2081.4,2.44515365]
[1770434830989,2.43785499,2082.7,2081.4,2.4065217]
[1770434831186,1.28372442,2082.6,2081.4,2.45566628]
[1770434831480,0.001,2082.2,2081.4,2.4076217]
[1770434831684,0.001,2082.2,2081.4,1.20650707]
[1770434831883,0.001,2082.2,2081.5,0.24076395]
[1770434832256,0.001,2082.2,2081.6,1.20099923]
[1770434832872,0.001,2082.2,2081.5,1.44178092]
[1770434833493,0.001,2082.2,2081.5,0.24076395]
[1770434833687,0.001,2082.2,2081.5,1.44180882]
[1770434833995,0.001,2082.2,2081.6,0.26869478]
[1770434834691,0.001,2082.2,2081.5,0.04804227]
[1770434834988,0.001,2082.2,2081.5,1.20102814]
[1770434835288,0.001,2082.2,2081.6,1.20099595]
[1770434835506,0.001,2082.2,2081.6,1.2490336]
[1770434836688,1.1999616,2083.4,2081.7,1.29027336]
[1770434836872,1.1999616,2083.4,2081.8,1.24403902]
[1770434837069,1.28372442,2083.3,2081.8,1.24403902]
[1770434837671,1.28372442,2083.3,2081.8,1.29207205]
[1770434837981,0.04623434,2083.0,2081.8,1.24403902]
[1770434838181,1.28372442,2083.3,2081.8,1.24403902]
[1770434838385,1.28372442,2083.3,2081.9,1.20082616]
[1770434838386,1.20013441,2083.1,2081.9,1.20082616]
[1770434838693,1.20013441,2083.1,2082.0,1.24403902]
[1770434838890,4.79953135,2083.6,2082.0,1.24403902]
[1770434840176,4.79953135,2083.6,2082.2,1.24403902]
[1770434840523,4.79953135,2083.6,2082.4,1.24403902]
[1770434840702,4.79953135,2083.6,2082.5,1.48850247]
[1770434840877,4.79953135,2083.6,2082.5,0.24446345]
[1770434841074,4.79953135,2083.6,2082.4,1.24403902]
[1770434842416,4.79953135,2083.6,2082.5,1.20048019]
[1770434842711,4.79953135,2083.6,2082.3,1.2005692]
[1770434842712,6.03702143,2083.6,2082.3,1.2005692]
[1770434842891,6.03702143,2083.6,2082.4,1.2005161]
[1770434843086,1.28372442,2083.5,2081.8,1.24403902]
[1770434843286,1.28372442,2083.2,2081.9,1.91416537]
[1770434843485,0.04623434,2082.9,2081.9,0.04803304]
[1770434843698,0.04623434,2082.9,2081.8,2.49295665]
[1770434844207,0.04623434,2082.9,2081.8,2.49295666]
[1770434844517,1.20013441,2083.1,2081.9,4.80312958]
[1770434844685,1.20013441,2083.1,2081.8,2.44486518]
[1770434844686,2.43762449,2083.1,2081.8,2.4448776]
[1770434844884,1.20013441,2083.1,2081.9,1.96888697]
[1770434845604,1.23749008,2083.0,2081.9,0.72484795]
[1770434845800,1.28372442,2082.9,2081.6,1.20099827]
[1770434845984,1.28372442,2082.9,2081.6,1.2009595]
[1770434846186,0.04623434,2082.6,2081.7,0.04803766]
[1770434846511,1.20048019,2082.5,2081.5,1.20105231]
[1770434846920,1.20048019,2082.5,2081.6,0.04803996]
[1770434847118,1.20048019,2082.5,2081.6,0.60546352]
[1770434847288,1.20048019,2082.5,2081.5,0.04803996]
[1770434847611,1.20048019,2082.5,2081.5,1.29207898]
[1770434848829,4.80125416,2082.8,2081.6,2.44503825]
[1770434849114,4.80125416,2082.8,2081.7,0.04803534]
[1770434849313,4.80125416,2082.8,2081.6,2.49307359]
[1770434849517,6.03874424,2082.8,2081.7,0.72970705]
[1770434850712,6.03874424,2082.8,2081.7,1.93059848]
[1770434851209,6.03874424,2082.8,2081.8,0.04803072]
[1770434851906,4.80125416,2082.8,2081.8,0.04803072]
[1770434852420,6.03874424,2082.8,2081.7,1.97863614]
[1770434852593,6.03874424,2082.8,2081.8,0.67825337]
[1770434852909,4.80122911,2083.0,2081.9,1.2488592]
[1770434853818,1.28372442,2082.8,2081.9,0.04803304]
[1770434853989,1.28372442,2082.8,2081.7,1.20093029]